fUST/lending_fUST_20260408
["ID","MTS","AMOUNT","RATE_DAILY","PERIOD"]
[419999281,1775599838573,-300.0,0.00016637,2]
[419999282,1775599838583,-2219.73873408,0.00016638,2]
[419999283,1775599838592,-423.1891944,0.00018966,2]
[419999284,1775599838602,-2916.5991122,0.00019,2]
[419999285,1775599838611,-2939.63342309,0.000191,2]
[419999286,1775599838620,-3011.70913469,0.00020331,2]
[419999287,1775599838629,-3476.03771291,0.00021563,2]
[419999288,1775599838639,-158.0,0.00022,2]
[419999289,1775599838649,-157.0,0.00022,2]
[419999290,1775599838658,-221.0,0.00022,2]
[419999291,1775599838667,-158.0,0.00023,2]
[419999292,1775599838677,-157.0,0.00023,2]
[419999293,1775599838687,-221.0,0.00023,2]
[419999294,1775599838696,-2234.86452529,0.000239,2]
[419999295,1775599838705,-270.83333333,0.00023923,2]
[419999296,1775599838715,-4085.08443278,0.00024,7]
[419999297,1775599838724,-158.0,0.00024,2]
[419999298,1775599838733,-173.1638994,0.00024,2]
[419999299,1775599838753,-221.0,0.00024,2]
[419999300,1775599838765,-537.6845,0.00024244,2]
[419999301,1775599838775,-2150.738,0.00024244,2]
[419999302,1775599838785,-557.5788265,0.00024299,2]
[419999304,1775599838795,-578.20924308,0.00024354,2]
[419999306,1775599838804,-599.60298507,0.00024409,2]
[419999307,1775599838814,-1473.0,0.00024443,2]
[419999308,1775599838824,-621.78829552,0.00024464,2]
[419999309,1775599838834,-2532.09245669,0.00024519,2]
[419999310,1775599838845,-644.79446246,0.00024519,2]
[419999311,1775599838856,-2532.09245667,0.00024519,2]
[419999312,1775599838867,-2532.09245667,0.0002452,2]
[419999313,1775599838877,-2532.09245667,0.0002452,2]
[419999314,1775599838887,-2532.09245667,0.0002452,2]
[419999315,1775599838896,-151.5,0.00024548,2]
[419999316,1775599838906,-298.5,0.00024548,2]
[419999317,1775599838916,-668.65185757,0.00024574,2]
[419999318,1775599838926,-644.0,0.00024578,2]
[419999319,1775599838936,-440.0,0.00024578,2]
[419999320,1775599838948,-184.0,0.00024578,2]
[419999321,1775599838958,-184.0,0.00024578,2]
[419999322,1775599838967,-500.0,0.00024618,2]
[419999323,1775599838977,-500.0,0.00024618,2]
[419999324,1775599838987,-500.0,0.00024618,2]
[419999325,1775599838997,-175.88811252,0.00024618,2]
[419999326,1775599839008,-500.0,0.00024618,2]
[419999327,1775599839018,-500.0,0.00024618,2]
[419999328,1775599839028,-500.0,0.00024618,2]
[419999329,1775599839039,-521.30574985,0.00024618,2]
[419999330,1775599839049,-500.0,0.00024618,2]
[419999331,1775599839058,-500.0,0.00024618,2]
[419999332,1775599839068,-500.0,0.00024618,2]
[419999333,1775599839077,-500.0,0.00024618,2]
[419999334,1775599839088,-500.0,0.00024618,2]
[419999335,1775599839098,-500.0,0.00024618,2]
[419999336,1775599839108,-500.0,0.00024618,2]
[419999337,1775599839118,-500.0,0.00024618,2]
[419999338,1775599839128,-500.0,0.00024618,2]
[419999339,1775599839137,-431.42964089,0.00024618,2]
[419999340,1775599839147,-500.0,0.00024618,2]
[419999341,1775599839157,-500.0,0.00024618,2]
[419999342,1775599839167,-500.0,0.00024618,2]
[419999343,1775599839176,-500.0,0.00024618,2]
[419999344,1775599839186,-500.0,0.00024618,2]
[419999345,1775599839197,-500.0,0.00024618,2]
[419999346,1775599839207,-500.0,0.00024618,2]
[419999347,1775599839216,-500.0,0.00024618,2]
[419999348,1775599839226,-247.87623198,0.00024618,2]
[419999349,1775599839236,-500.0,0.00024618,2]
[419999350,1775599839248,-500.0,0.00024618,2]
[419999351,1775599839258,-500.0,0.00024618,2]
[419999352,1775599839268,-500.0,0.00024618,2]
[419999353,1775599839278,-500.0,0.00024618,2]
[419999354,1775599839289,-500.0,0.00024618,2]
[419999355,1775599839299,-200.84663778,0.00024618,2]
[419999356,1775599839309,-500.0,0.00024618,2]
[419999357,1775599839320,-500.0,0.00024618,2]
[419999358,1775599839329,-500.0,0.00024618,2]
[419999359,1775599839340,-500.0,0.00024618,2]
[419999360,1775599839350,-500.0,0.00024618,2]
[419999361,1775599839360,-500.0,0.00024618,2]
[419999362,1775599839370,-500.0,0.00024618,2]
[419999363,1775599839380,-500.0,0.00024618,2]
[419999364,1775599839390,-500.0,0.00024618,2]
[419999365,1775599839400,-500.0,0.00024618,2]
[419999366,1775599839411,-500.0,0.00024618,2]
[419999367,1775599839421,-500.0,0.00024618,2]
[419999368,1775599839431,-500.0,0.00024618,2]
[419999369,1775599839441,-182.59668468,0.00024618,2]
[419999370,1775599839451,-500.0,0.00024618,2]
[419999371,1775599839460,-500.0,0.00024618,2]
[419999372,1775599839470,-500.0,0.00024618,2]
[419999373,1775599839480,-500.0,0.00024618,2]
[419999374,1775599839491,-500.0,0.00024618,2]
[419999375,1775599839501,-500.0,0.00024618,2]
[419999376,1775599839512,-500.0,0.00024618,2]
[419999377,1775599839522,-500.0,0.00024618,2]
[419999378,1775599839532,-500.0,0.00024618,2]
[419999379,1775599839542,-500.0,0.00024618,2]
[419999380,1775599839552,-500.0,0.00024618,2]
[419999381,1775599839563,-500.0,0.00024618,2]
[419999382,1775599839574,-500.0,0.00024618,2]
[419999383,1775599839584,-500.0,0.00024618,2]
[419999384,1775599839594,-500.0,0.00024618,2]
[419999385,1775599839605,-500.0,0.00024618,2]
[419999386,1775599839614,-500.0,0.00024618,2]
[419999387,1775599839625,-500.0,0.00024618,2]
[419999388,1775599839635,-500.0,0.00024618,2]
[419999389,1775599839645,-500.0,0.00024618,2]
[419999390,1775599839655,-500.0,0.00024618,2]
[419999391,1775599839665,-500.0,0.00024618,2]
[419999392,1775599839675,-500.0,0.00024618,2]
[419999393,1775599839685,-500.0,0.00024618,2]
[419999395,1775599839695,-500.0,0.00024618,2]
[419999397,1775599839705,-500.0,0.00024618,2]
[419999398,1775599839715,-500.0,0.00024618,2]
[419999399,1775599839726,-500.0,0.00024618,2]
[419999400,1775599839735,-500.0,0.00024618,2]
[419999401,1775599839745,-500.0,0.00024618,2]
[419999402,1775599839755,-500.0,0.00024618,2]
[419999403,1775599839765,-500.0,0.00024618,2]
[419999404,1775599839775,-500.0,0.00024618,2]
[419999405,1775599839787,-500.0,0.00024618,2]
[419999406,1775599839796,-500.0,0.00024619,2]
[419999407,1775599839806,-621.32791829,0.00024619,2]
[419999408,1775599839815,-500.0,0.00024619,2]
[419999409,1775599839825,-500.0,0.00024619,2]
[419999410,1775599839835,-500.0,0.00024619,2]
[419999411,1775599839845,-500.0,0.00024619,2]
[419999412,1775599839855,-500.0,0.00024619,2]
[419999413,1775599839864,-500.0,0.00024619,2]
[419999414,1775599839875,-500.0,0.00024619,2]
[419999415,1775599839884,-500.0,0.00024619,2]
[419999416,1775599839894,-500.0,0.00024619,2]
[419999417,1775599839904,-500.0,0.00024619,2]
[419999418,1775599839914,-421.77002792,0.00024619,2]
[419999419,1775599839924,-500.0,0.00024619,2]
[419999420,1775599839933,-500.0,0.00024619,2]
[419999421,1775599839943,-500.0,0.00024619,2]
[419999422,1775599839953,-249.36460401,0.00024619,2]
[419999423,1775599839963,-500.0,0.00024619,2]
[419999424,1775599839973,-550.0,0.00024619,2]
[419999425,1775599839982,-500.0,0.00024619,2]
[419999426,1775599839992,-500.0,0.00024619,2]
[419999427,1775599840001,-500.0,0.00024619,2]
[419999428,1775599840010,-500.0,0.00024619,2]
[419999429,1775599840020,-500.0,0.00024619,2]
[419999430,1775599840029,-500.0,0.00024619,2]
[419999431,1775599840038,-27849.87701582,0.0002462,2]
[419999432,1775599840047,-26668.16909225,0.0002462,2]
[419999433,1775599840061,-780.54656756,0.0002462,2]
[419999434,1775599840100,-507.38707281,0.0002462,2]
[419999435,1775599840114,-263011.41919071,0.0002462,2]
[419999436,1775599840125,-222875.65016107,0.0002462,2]
[419999437,1775599840136,-85646.93243961,0.0002462,2]
[419999438,1775599840151,-3026.59533107,0.0002462,2]
[419999455,1775599841204,-8432.55005411,0.0002462,2]
[419999484,1775599843683,-500.0,0.00024618,2]
[419999485,1775599843692,-15331.19955516,0.0002462,2]
[419999486,1775599843704,-2060.3243339,0.0002462,2]
[419999487,1775599843767,-20392.40903748,0.0002462,2]
[419999488,1775599843779,-1074.91166387,0.0002462,2]
[419999489,1775599843791,-1580.71166212,0.0002462,2]
[419999490,1775599843807,-3845.15198489,0.0002462,2]
[419999539,1775599846843,-160523.55053617,0.0002462,2]
[419999540,1775599924989,168.96324582,0.0001,2]
[419999547,1775600393833,34980.0,0.00034173,120]
[419999548,1775600403748,165.98,9e-05,2]
[419999549,1775600404012,165.98,9.9e-05,2]
[419999581,1775601032335,-5000.0,0.00011422,2]
[419999583,1775601032346,-2714.94914633,0.00011537,2]
[419999589,1775601032402,-2285.05085367,0.00011537,2]
[419999591,1775601032412,-300.0,0.00011653,2]
[419999593,1775601032422,-151.0,0.00011654,2]
[419999595,1775601032432,-151.0,0.00012014,2]
[419999597,1775601032442,-420.0,0.00012797,2]
[419999598,1775601032451,-1000.0,0.00013699,2]
[419999600,1775601032461,-587.0,0.00014053,2]
[419999602,1775601032471,-823.0,0.00015433,2]
[419999604,1775601032482,-151.0,0.00018064,2]
[419999606,1775601032492,-350.0,0.00019726,2]
[419999608,1775601032502,-294.52869321,0.00019726,2]
[419999613,1775601032554,-138.94323916,0.00019726,2]
[419999615,1775601032564,-361.05676084,0.00019998,2]
[419999618,1775601032582,-1583.27445496,0.00019998,2]
[419999620,1775601032592,-156.0,0.00022,2]
[419999622,1775601032601,-159.0,0.00022,2]
[419999624,1775601032611,-159.0,0.00022,2]
[419999626,1775601032621,-214.0,0.00022,2]
[419999628,1775601032631,-159.0,0.00023,2]
[419999630,1775601032641,-214.0,0.00023,2]
[419999632,1775601032650,-687.0,0.00023327,2]
[419999634,1775601032660,-151.0,0.000235,7]
[419999635,1775601032670,-685.0,0.00023993,2]
[419999637,1775601032680,-173.0,0.00024,2]
[419999638,1775601032689,-214.0,0.00024,2]
[419999640,1775601032699,-325.1735551,0.00024054,2]
[419999642,1775601032709,-162.380719,0.00024061,2]
[419999644,1775601032718,-151.0,0.00024061,2]
[419999646,1775601032728,-151.0,0.00024061,2]
[419999648,1775601032738,-151.0,0.00024061,2]
[419999649,1775601032747,-151.0,0.00024061,2]
[419999651,1775601032757,-151.0,0.00024061,2]
[419999653,1775601032767,-537.6845,0.00024061,2]
[419999655,1775601032776,-156.587,0.00024061,2]
[419999657,1775601032786,-2150.738,0.00024061,2]
[419999659,1775601032795,-355.92118808,0.00024061,2]
[419999662,1775601032807,-181.76331192,0.00024061,2]
[419999663,1775601032817,-142.70799487,0.0002411,2]
[419999684,1775601038626,-5000.0,0.00023869,2]
[419999685,1775601038636,-542.29200513,0.0002411,2]
[419999686,1775601038646,-557.5788265,0.00024116,2]
[419999687,1775601038656,-578.20924308,0.00024171,2]
[419999688,1775601038666,-599.60298507,0.00024226,2]
[419999689,1775601038676,-142.28876436,0.00024281,2]
[419999737,1775601041226,-479.49953116,0.00024281,2]
[419999739,1775601041235,-219.66512056,0.00024323,2]
[419999749,1775601041321,-465.33487944,0.00024323,2]
[419999751,1775601041330,-644.79446246,0.00024336,2]
[419999753,1775601041339,-668.65185757,0.00024391,2]
[419999755,1775601041348,-1000.0,0.00024401,5]
[419999757,1775601041356,-693.3919763,0.00024446,2]
[419999759,1775601041365,-539.73,0.00024467,2]
[419999761,1775601041374,-685.0,0.00024468,2]
[419999762,1775601041382,-685.0,0.00024471,2]
[419999764,1775601041390,-270.83333333,0.00024499,2]
[419999766,1775601041400,-151.0,0.000245,7]
[419999769,1775601041410,-151.0,0.000245,5]
[419999771,1775601041425,-151.0,0.000245,7]
[419999773,1775601041435,-719.04747942,0.00024501,2]
[419999775,1775601041444,-500.0,0.00024518,2]
[419999777,1775601041455,-248.431,0.00024518,7]
[419999779,1775601041465,-539.73,0.00024518,2]
[419999781,1775601041475,-539.73,0.00024518,2]
[419999783,1775601041486,-539.73,0.00024518,2]
[419999785,1775601041497,-539.73,0.00024518,2]
[419999787,1775601041508,-539.73,0.00024518,2]
[419999789,1775601041519,-539.73,0.00024518,2]
[419999791,1775601041529,-539.73,0.00024518,2]
[419999793,1775601041539,-539.73,0.00024518,2]
[419999795,1775601041550,-539.73,0.00024518,2]
[419999798,1775601041560,-539.73,0.00024518,2]
[419999800,1775601041570,-539.73,0.00024518,2]
[419999802,1775601041580,-262.70751149,0.00024518,2]
[419999831,1775601043749,-277.02248851,0.00024518,2]
[419999832,1775601043759,-539.73,0.00024518,2]
[419999833,1775601043769,-539.73,0.00024518,2]
[419999834,1775601043780,-539.73,0.00024518,2]
[419999835,1775601043791,-539.73,0.00024518,2]
[419999836,1775601043801,-539.73,0.00024518,2]
[419999837,1775601043812,-539.73,0.00024518,2]
[419999838,1775601043822,-539.73,0.00024518,2]
[419999839,1775601043832,-539.73,0.00024518,2]
[419999840,1775601043842,-539.73,0.00024518,2]
[419999841,1775601043853,-539.73,0.00024518,2]
[419999842,1775601043863,-539.80992254,0.00024518,2]
[419999843,1775601043873,-708.86,0.00024519,2]
[419999844,1775601043884,-708.86,0.00024519,2]
[419999845,1775601043894,-708.86,0.00024519,2]
[419999846,1775601043904,-708.86,0.00024519,2]
[419999847,1775601043915,-708.86,0.00024519,2]
[419999848,1775601043925,-708.86,0.00024519,2]
[419999849,1775601043935,-708.86,0.00024519,2]
[419999850,1775601043944,-708.86,0.00024519,2]
[419999851,1775601043954,-608.95705693,0.00024519,2]
[419999852,1775601043967,-99.90294307,0.00024519,2]
[419999853,1775601043978,-708.86,0.00024519,2]
[419999854,1775601043988,-708.86,0.00024519,2]
[419999855,1775601043998,-708.86,0.00024519,2]
[419999856,1775601044009,-708.86,0.00024519,2]
[419999857,1775601044019,-867.52,0.00024519,2]
[419999858,1775601044028,-200.0,0.00024519,2]
[419999859,1775601044038,-173.986,0.00024519,2]
[419999860,1775601044049,-169.728,0.00024519,2]
[419999861,1775601044059,-532.44351489,0.00024556,2]
[419999863,1775601044069,-500.0,0.00024571,2]
[419999864,1775601044078,-500.0,0.00024571,2]
[419999866,1775601044088,-500.0,0.00024571,2]
[419999867,1775601044097,-500.0,0.00024571,2]
[419999869,1775601044106,-320.1962785,0.00024571,2]
[419999871,1775601044115,-500.0,0.00024571,2]
[419999873,1775601044123,-500.0,0.00024571,2]
[419999874,1775601044133,-500.0,0.00024571,2]
[419999875,1775601044142,-500.0,0.00024571,2]
[419999876,1775601044151,-500.0,0.00024571,2]
[419999877,1775601044161,-500.0,0.00024571,2]
[419999878,1775601044170,-500.0,0.00024571,2]
[419999879,1775601044181,-500.0,0.00024571,2]
[419999880,1775601044191,-500.0,0.00024571,2]
[419999881,1775601044200,-500.0,0.00024571,2]
[419999882,1775601044210,-500.0,0.00024571,2]
[419999883,1775601044219,-207.81541142,0.00024571,2]
[419999884,1775601044229,-500.0,0.00024571,2]
[419999885,1775601044238,-500.0,0.00024571,2]
[419999886,1775601044248,-500.0,0.00024571,2]
[419999887,1775601044258,-500.0,0.00024571,2]
[419999888,1775601044268,-500.0,0.00024571,2]
[419999889,1775601044277,-500.0,0.00024571,2]
[419999890,1775601044287,-500.0,0.00024571,2]
[419999891,1775601044298,-500.0,0.00024571,2]
[419999892,1775601044307,-500.0,0.00024571,2]
[419999893,1775601044318,-500.0,0.00024571,2]
[419999894,1775601044327,-500.0,0.00024571,2]
[419999895,1775601044337,-500.0,0.00024571,2]
[419999896,1775601044347,-500.0,0.00024571,2]
[419999897,1775601044357,-500.0,0.00024571,2]
[419999898,1775601044366,-500.0,0.00024571,2]
[419999899,1775601044376,-500.0,0.00024571,2]
[419999900,1775601044386,-500.0,0.00024571,2]
[419999901,1775601044395,-500.0,0.00024571,2]
[419999902,1775601044405,-500.0,0.00024571,2]
[419999903,1775601044416,-500.0,0.00024571,2]
[419999904,1775601044426,-500.0,0.00024571,2]
[419999905,1775601044436,-500.0,0.00024571,2]
[419999906,1775601044446,-500.0,0.00024573,2]
[419999907,1775601044456,-500.0,0.00024573,2]
[419999908,1775601044465,-500.0,0.00024573,2]
[419999909,1775601044475,-322.22533577,0.00024573,2]
[419999910,1775601044485,-413.17145095,0.00024573,2]
[419999911,1775601044495,-685.0,0.00024582,2]
[419999912,1775601044504,-168.38880564,0.00024609,2]
[419999913,1775601044515,-171.497041,0.00024609,2]
[419999914,1775601044524,-557.5788265,0.00024609,2]
[419999915,1775601044534,-2341.11368636,0.00024609,2]
[419999916,1775601044545,-500.0,0.00024619,2]
[419999917,1775601044555,-500.0,0.00024619,2]
[419999918,1775601044564,-500.0,0.00024619,2]
[419999919,1775601044574,-500.0,0.00024619,2]
[419999920,1775601044585,-500.0,0.00024619,2]
[419999921,1775601044596,-500.0,0.00024619,2]
[419999922,1775601044606,-500.0,0.00024619,2]
[419999923,1775601044616,-500.0,0.00024619,2]
[419999924,1775601044626,-500.0,0.00024619,2]
[419999925,1775601044636,-500.0,0.00024619,2]
[419999926,1775601044646,-500.0,0.00024619,2]
[419999927,1775601044655,-500.0,0.00024619,2]
[419999928,1775601044665,-500.0,0.00024619,2]
[419999929,1775601044675,-500.0,0.00024619,2]
[419999930,1775601044684,-500.0,0.00024619,2]
[419999931,1775601044694,-500.0,0.00024619,2]
[419999932,1775601044704,-150.833289,0.00024619,2]
[419999933,1775601044713,-3065.2630764,0.0002462,2]
[419999934,1775601044723,-200.0,0.0002462,2]
[419999935,1775601044733,-685.0,0.00024672,2]
[419999936,1775601044743,-151.0,0.000247,10]
[419999937,1775601044752,-151.0,0.000247,6]
[419999938,1775601044763,-505.0,0.00024716,2]
[419999939,1775601044773,-500.0,0.00024792,2]
[419999940,1775601044783,-6380.69558241,0.000248,2]
[419999941,1775601044796,-4980.79378949,0.000248,2]
[419999945,1775601047608,-1142.3617184,0.00024325,2]
[419999946,1775601047621,-949.77920166,0.00024325,2]
[419999947,1775601047633,-2907.85907994,0.00024325,2]
[419999948,1775601047643,-2171.04151965,0.000248,2]
[419999949,1775601047656,-7289.68794698,0.000248,2]
[419999950,1775601047666,-1472.0,0.00024829,7]
[419999951,1775601047676,-685.0,0.00024841,2]
[419999952,1775601047685,-685.0,0.000249,2]
[419999953,1775601047695,-1472.0,0.00024904,2]
[419999954,1775601047705,-248.631592,0.00024935,14]
[419999955,1775601047714,-291.887256,0.00024935,14]
[419999956,1775601047723,-685.0,0.00024959,2]
[419999957,1775601047733,-500.0,0.0002497,2]
[419999958,1775601047743,-500.0,0.0002497,2]
[419999959,1775601047752,-500.0,0.0002497,2]
[419999961,1775601047762,-448.66154155,0.0002497,2]
[419999962,1775601047772,-645.88493109,0.0002497,2]
[419999963,1775601047781,-500.0,0.0002497,2]
[419999964,1775601047791,-347.72285001,0.0002497,2]
[419999965,1775601047801,-500.0,0.0002497,2]
[419999966,1775601047810,-500.0,0.0002497,2]
[419999967,1775601047820,-500.0,0.0002497,2]
[419999968,1775601047830,-500.0,0.0002497,2]
[419999969,1775601047841,-500.0,0.0002497,2]
[419999970,1775601047851,-500.0,0.0002497,2]
[419999971,1775601047861,-4152.99401866,0.00024971,2]
[419999972,1775601047873,-1444.24559467,0.00024971,2]
[419999979,1775601101179,-1209.52611106,0.0001209,2]
[419999985,1775601343142,746.24358429,0.00034173,120]
[419999988,1775602175558,5000.0,0.00034171,120]
[419999989,1775602196010,4669.37698816,0.000325,120]
[419999997,1775602223181,5000.0,0.00034171,120]
[420000042,1775602232608,-156.0,0.00013699,2]
[420000044,1775602232618,-563.27332917,0.00013699,2]
[420000047,1775602232642,-436.72667083,0.00013699,2]
[420000049,1775602232651,-183.6561591,0.00021557,4]
[420000051,1775602232663,-823.66949519,0.00021557,4]
[420000053,1775602232674,-1000.0,0.00021558,2]
[420000055,1775602232684,-182.0,0.00022,2]
[420000058,1775602232694,-532.88586023,0.00022408,2]
[420000061,1775602232704,-162.04557872,0.00022465,2]
[420000064,1775602232714,-291.6820417,0.00022465,2]
[420000066,1775602232724,-518.54585192,0.00022465,2]
[420000068,1775602232734,-809.41766573,0.00022696,2]
[420000070,1775602232744,-182.0,0.00023,2]
[420000073,1775602232755,-270.83333333,0.00023,2]
[420000074,1775602232764,-226.92017318,0.00023588,2]
[420000080,1775602232811,-305.09082963,0.00023588,2]
[420000082,1775602232822,-196.00582245,0.00023588,2]
[420000084,1775602232833,-221.38307014,0.00023647,2]
[420000087,1775602232843,-398.48952624,0.00023647,2]
[420000088,1775602232853,-128.22002008,0.00023647,2]
[420000167,1775602242840,-580.20580435,0.00023647,2]
[420000169,1775602242851,-107.3631085,0.00023647,2]
[420000180,1775602242954,-812.04690215,0.00023647,2]
[420000182,1775602242966,-186.39842468,0.00023647,2]
[420000184,1775602242976,-500.0,0.00024,2]
[420000186,1775602242985,-182.0,0.00024,2]
[420000188,1775602242994,-270.69099778,0.0002406,2]
[420000190,1775602243005,-1955.50645962,0.00024394,2]
[420000192,1775602243015,-216.02458833,0.00024421,5]
[420000194,1775602243025,-150.0,0.00024478,2]
[420000196,1775602243035,-150.0,0.00024478,2]
[420000198,1775602243046,-150.0,0.00024478,2]
[420000202,1775602243057,-150.0,0.00024478,2]
[420000205,1775602243067,-150.0,0.00024478,2]
[420000208,1775602243078,-208.82882775,0.0002448,2]
[420000210,1775602243089,-500.0,0.00024493,2]
[420000213,1775602243100,-500.0,0.00024493,2]
[420000216,1775602243110,-425.96751428,0.00024493,2]
[420000218,1775602243120,-500.0,0.00024493,2]
[420000220,1775602243130,-500.0,0.00024493,2]
[420000222,1775602243141,-500.0,0.00024493,2]
[420000225,1775602243152,-500.0,0.00024493,2]
[420000226,1775602243162,-500.0,0.00024493,2]
[420000228,1775602243172,-500.0,0.00024493,2]
[420000230,1775602243182,-500.0,0.00024493,2]
[420000232,1775602243191,-500.0,0.00024493,2]
[420000234,1775602243202,-500.0,0.00024493,2]
[420000237,1775602243212,-500.0,0.00024493,2]
[420000240,1775602243221,-500.0,0.00024493,2]
[420000242,1775602243231,-500.0,0.00024493,2]
[420000244,1775602243241,-500.0,0.00024493,2]
[420000246,1775602243252,-500.0,0.00024493,2]
[420000248,1775602243261,-601.54804044,0.00024493,2]
[420000250,1775602243272,-500.0,0.00024493,2]
[420000252,1775602243281,-500.0,0.00024493,2]
[420000254,1775602243291,-500.0,0.00024493,2]
[420000257,1775602243301,-500.0,0.00024493,2]
[420000260,1775602243312,-500.0,0.00024493,2]
[420000262,1775602243322,-500.0,0.00024493,2]
[420000264,1775602243332,-500.0,0.00024493,2]
[420000266,1775602243342,-500.0,0.00024493,2]
[420000268,1775602243353,-500.0,0.00024493,2]
[420000270,1775602243364,-500.0,0.00024493,2]
[420000272,1775602243374,-500.0,0.00024493,2]
[420000274,1775602243384,-500.0,0.00024493,2]
[420000276,1775602243394,-500.0,0.00024493,2]
[420000278,1775602243404,-500.0,0.00024493,2]
[420000280,1775602243414,-500.0,0.00024493,2]
[420000282,1775602243426,-500.0,0.00024493,2]
[420000284,1775602243436,-500.0,0.00024493,2]
[420000286,1775602243445,-500.0,0.00024493,2]
[420000288,1775602243456,-500.0,0.00024493,2]
[420000290,1775602243466,-500.0,0.00024493,2]
[420000292,1775602243475,-500.0,0.00024493,2]
[420000294,1775602243485,-500.0,0.00024493,2]
[420000296,1775602243495,-500.0,0.00024493,2]
[420000298,1775602243504,-500.0,0.00024493,2]
[420000300,1775602243518,-500.0,0.00024493,2]
[420000302,1775602243528,-500.0,0.00024493,2]
[420000304,1775602243539,-500.0,0.00024493,2]
[420000306,1775602243550,-500.0,0.00024493,2]
[420000308,1775602243563,-500.0,0.00024493,2]
[420000310,1775602243573,-456.79875446,0.00024493,2]
[420000312,1775602243583,-500.0,0.00024493,2]
[420000314,1775602243593,-500.0,0.00024493,2]
[420000316,1775602243604,-500.0,0.00024493,2]
[420000318,1775602243614,-500.0,0.00024493,2]
[420000320,1775602243625,-500.0,0.00024493,2]
[420000322,1775602243636,-500.0,0.00024493,2]
[420000324,1775602243647,-500.0,0.00024493,2]
[420000326,1775602243658,-500.0,0.00024493,2]
[420000328,1775602243669,-500.0,0.00024493,2]
[420000330,1775602243679,-500.0,0.00024494,2]
[420000332,1775602243689,-500.0,0.00024494,2]
[420000334,1775602243701,-500.0,0.00024494,2]
[420000336,1775602243710,-500.0,0.00024494,2]
[420000338,1775602243720,-466.39915088,0.00024494,2]
[420000341,1775602243735,-33.60084912,0.00024494,2]
[420000343,1775602243744,-334.26319178,0.00024494,2]
[420000345,1775602243755,-500.0,0.00024494,2]
[420000347,1775602243764,-500.0,0.00024494,2]
[420000349,1775602243774,-500.0,0.00024494,2]
[420000351,1775602243784,-471.70968693,0.00024494,2]
[420000353,1775602243794,-500.0,0.00024494,2]
[420000355,1775602243804,-500.0,0.00024494,2]
[420000356,1775602243815,-500.0,0.00024494,2]
[420000358,1775602243826,-500.0,0.00024494,2]
[420000360,1775602243836,-500.0,0.00024494,2]
[420000362,1775602243846,-500.0,0.00024494,2]
[420000364,1775602243856,-513.1389448,0.00024494,2]
[420000367,1775602243867,-500.0,0.00024494,2]
[420000368,1775602243877,-8098.09437537,0.00024495,2]
[420000378,1775602243964,-1297.21331,0.00024495,2]
[420000380,1775602243975,-1045.05139683,0.00024495,2]
[420000382,1775602243987,-388.60540204,0.00024495,2]
[420000384,1775602243999,-437.94669,0.00024495,2]
[420000396,1775602244121,-26576.71757809,0.00024495,2]
[420000678,1775602247126,-1765.40586895,0.00024495,2]
[420000679,1775602247138,-38542.18629572,0.00024495,2]
[420000680,1775602247148,-500.0,0.000247,2]